bitfinex/quotes_BTCUSD_20250607
["timestamp","ask_amount","ask_price","bid_price","bid_amount"]
[1749270093623,0.23225076,104860.0,104850.0,0.62626101]
[1749270094048,0.23065951,104860.0,104850.0,0.62626101]
[1749270094265,0.24855076,104860.0,104850.0,0.62626101]
[1749270095556,0.23065951,104860.0,104850.0,0.62626101]
[1749270095775,0.24855065,104860.0,104850.0,0.62626101]
[1749270096857,0.23065951,104860.0,104850.0,0.62626101]
[1749270100726,0.23065951,104860.0,104850.0,0.62618101]
[1749270101344,0.7809695,104860.0,104850.0,0.62618101]
[1749270101772,0.78767889,104860.0,104850.0,0.62618101]
[1749270102063,0.78767892,104860.0,104850.0,0.62618101]
[1749270102574,5.58047749,104860.0,104850.0,0.00126101]
[1749270102792,5.60337905,104860.0,104850.0,0.37878101]
[1749270103019,5.63869307,104860.0,104850.0,0.37878101]
[1749270103225,5.63869296,104860.0,104850.0,0.37878101]
[1749270103437,5.6319845,104860.0,104850.0,0.37878101]
[1749270103595,5.63869292,104860.0,104850.0,0.37878101]
[1749270103802,5.66075457,104860.0,104850.0,0.37878101]
[1749270104180,5.66075457,104860.0,104850.0,0.00126101]
[1749270104382,5.66746299,104860.0,104850.0,0.37878101]
[1749270104588,5.66075457,104860.0,104850.0,0.37878101]
[1749270104989,5.667463,104860.0,104850.0,0.37878101]
[1749270105429,5.63214912,104860.0,104850.0,0.37878101]
[1749270105633,5.63885755,104860.0,104850.0,0.37878101]
[1749270106016,5.63214912,104860.0,104850.0,0.37878101]
[1749270106601,5.63885756,104860.0,104850.0,0.37878101]
[1749270106861,5.63885757,104860.0,104850.0,0.37878101]
[1749270107273,5.63214912,104860.0,104850.0,0.37878101]
[1749270107479,5.63885757,104860.0,104850.0,0.37878101]
[1749270107689,5.63214912,104860.0,104850.0,0.37878101]
[1749270107904,5.63885757,104860.0,104850.0,0.37878101]
[1749270108130,5.63214912,104860.0,104850.0,0.37878101]
[1749270109176,5.63885754,104860.0,104850.0,0.37878101]
[1749270109595,5.63214912,104860.0,104850.0,0.37878101]
[1749270110844,5.63885766,104860.0,104850.0,0.37878101]
[1749270111252,5.08183913,104860.0,104850.0,0.37878101]
[1749270111386,5.08854781,104860.0,104850.0,0.37878101]
[1749270111588,5.08183913,104860.0,104850.0,0.37878101]
[1749270111778,5.08854781,104860.0,104850.0,0.37878101]
[1749270112223,5.08183913,104860.0,104850.0,0.37878101]
[1749270112446,5.08854781,104860.0,104850.0,0.37878101]
[1749270112581,5.08853742,104860.0,104850.0,0.37878101]
[1749270112986,5.63884741,104860.0,104850.0,0.00126101]
[1749270113212,5.74978753,104860.0,104850.0,0.37882101]
[1749270113390,5.74308945,104860.0,104850.0,0.37882101]
[1749270113662,5.74978749,104860.0,104850.0,0.37882101]
[1749270114031,5.74308945,104860.0,104850.0,0.37882101]
[1749270114584,5.0434671,104860.0,104850.0,0.37882101]
[1749270114792,5.00777441,104860.0,104850.0,0.37882101]
[1749270115011,4.44122918,104860.0,104850.0,0.37882101]
[1749270115228,0.53203118,104860.0,104850.0,1.15137968]
[1749270115647,0.19203118,104860.0,104850.0,0.41032101]
[1749270116287,0.19203118,104860.0,104850.0,0.960631]
[1749270116498,0.53203118,104860.0,104850.0,0.960631]
[1749270116706,0.53203118,104860.0,104850.0,0.41032101]
[1749270119135,0.53203118,104860.0,104850.0,0.68520101]
[1749270119525,0.53203118,104860.0,104850.0,0.65370101]
[1749270124267,0.53203118,104860.0,104850.0,1.204011]
[1749270127317,0.53203118,104860.0,104850.0,1.39475968]
[1749270127621,0.53203118,104860.0,104850.0,1.42545968]
[1749270127825,0.3603731,104860.0,104850.0,1.44453427]
[1749270128032,0.36990962,104860.0,104850.0,1.44453427]
[1749270128342,0.02990889,104860.0,104850.0,1.47314519]
[1749270128541,0.03944541,104860.0,104850.0,1.45407134]
[1749270128712,0.03944541,104860.0,104850.0,1.44453427]
[1749270129543,0.03944541,104860.0,104850.0,1.45407134]
[1749270129788,0.02990889,104860.0,104850.0,1.45407134]
[1749270129998,0.02990889,104860.0,104850.0,1.56000761]
[1749270131088,0.02990889,104860.0,104850.0,1.5600077]
[1749270132332,0.02990889,104860.0,104850.0,1.55047082]
[1749270132536,0.03944541,104860.0,104850.0,1.54093375]
[1749270132759,0.2301759,104860.0,104850.0,1.00016101]
[1749270132972,0.22064011,104860.0,104850.0,1.0001611]
[1749270133182,0.22064011,104860.0,104850.0,1.56000816]
[1749270133619,0.22064011,104860.0,104850.0,1.54093393]
[1749270133824,0.22064011,104860.0,104850.0,1.00016119]
[1749270134032,0.22064011,104860.0,104850.0,1.55047118]
[1749270134259,0.22064002,104860.0,104850.0,0.95355048]
[1749270134471,0.24350395,104860.0,104850.0,0.75002049]
[1749270134687,0.24350395,104860.0,104850.0,0.9503066]
[1749270135312,0.24350395,104860.0,104850.0,0.95984394]
[1749270135870,0.24350395,104860.0,104850.0,0.94076917]
[1749270136734,0.23396761,104860.0,104850.0,0.75002049]
[1749270140674,0.23396761,104860.0,104850.0,0.74998049]
[1749270141619,0.23396761,104860.0,104850.0,0.37254049]
[1749270141848,0.23396761,104860.0,104850.0,0.74998049]
[1749270142487,0.23396761,104860.0,104850.0,0.37254049]
[1749270142698,0.23396761,104860.0,104850.0,0.74998049]
[1749270142904,0.21776761,104860.0,104850.0,0.74998049]
[1749270143066,0.20156761,104860.0,104850.0,1.30029048]
[1749270143632,0.21756761,104860.0,104850.0,1.30029048]
[1749270147516,0.21756761,104860.0,104850.0,0.92285048]
[1749270147629,0.21756761,104860.0,104850.0,1.203851]
[1749270147630,0.20156761,104860.0,104850.0,1.203851]
[1749270154505,0.0203731,104860.0,104850.0,0.8633641]
[1749270154731,0.02990962,104860.0,104850.0,1.67057106]
[1749270154977,0.22064011,104860.0,104850.0,1.66103418]
[1749270155188,0.21110404,104860.0,104850.0,1.66103418]
[1749270155615,0.21110404,104860.0,104850.0,1.66103427]
[1749270155857,0.21110404,104860.0,104850.0,1.67057143]
[1749270157043,0.21110404,104860.0,104850.0,1.66103427]
[1749270159681,0.21110404,104860.0,104850.0,1.67057143]
[1749270160153,0.21110404,104860.0,104850.0,1.66103427]
[1749270160807,0.21110404,104860.0,104850.0,1.67057143]
[1749270161468,0.21110404,104860.0,104850.0,1.66103427]
[1749270161686,0.21110404,104860.0,104850.0,1.67057143]
[1749270162110,0.21110404,104860.0,104850.0,1.66103427]
[1749270162318,0.21110404,104860.0,104850.0,1.67057143]
[1749270163357,0.02037355,104860.0,104850.0,1.67057143]
[1749270164459,0.01083648,104860.0,104850.0,1.81884477]
[1749270164711,0.00130069,104860.0,104850.0,2.36915476]
[1749270164933,0.00130069,104860.0,104850.0,1.81884477]
[1749270165808,0.00130069,104860.0,104850.0,1.81758376]
[1749270166253,0.00130069,104860.0,104850.0,1.81858376]
[1749270166698,0.00130069,104860.0,104850.0,1.82058376]
[1749270167112,0.00130069,104860.0,104850.0,1.82358376]
[1749270174369,0.01083639,104860.0,104850.0,1.82358376]
[1749270175384,0.02037236,104860.0,104850.0,1.82358376]
[1749270176130,0.01083639,104860.0,104850.0,1.82358376]
[1749270176313,0.02037236,104860.0,104850.0,1.82358376]
[1749270177632,0.02037227,104860.0,104850.0,1.82358376]
[1749270178058,0.02990824,104860.0,104850.0,1.82358376]
[1749270178247,0.03944431,104860.0,104850.0,1.82358376]
[1749270178448,0.02990824,104860.0,104850.0,1.82358376]
[1749270179373,0.02037227,104860.0,104850.0,1.82358376]
[1749270179565,0.02037218,104860.0,104850.0,1.82358376]
[1749270181025,0.02990815,104860.0,104850.0,1.82358376]
[1749270181261,0.02037218,104860.0,104850.0,1.82358376]
[1749270182010,0.00130069,104860.0,104850.0,1.82358376]
[1749270182220,0.01083639,104860.0,104850.0,1.82358376]
[1749270183925,0.02037227,104860.0,104850.0,1.27327377]
[1749270184163,0.02037227,104860.0,104850.0,1.82358376]
[1749270185602,0.02990834,104860.0,104850.0,1.82358376]
[1749270186629,0.02037227,104860.0,104850.0,1.82358376]
[1749270187477,0.02990834,104860.0,104850.0,1.82358376]
[1749270190276,0.02990834,104860.0,104850.0,1.53426376]
[1749270190391,0.02990834,104860.0,104850.0,1.79070376]
[1749270191406,0.02037227,104860.0,104850.0,1.79070376]
[1749270191611,0.02990834,104860.0,104850.0,1.79070376]
[1749270193351,0.02037227,104860.0,104850.0,1.79070376]
[1749270193529,0.02990834,104860.0,104850.0,1.79070376]
[1749270193676,0.02037227,104860.0,104850.0,1.79070376]
[1749270194694,0.02037227,104860.0,104850.0,1.82260376]
[1749270196486,0.00130069,104860.0,104850.0,1.82260376]
[1749270196715,0.01083648,104860.0,104850.0,1.82260376]
[1749270197576,0.00130069,104860.0,104850.0,1.82150376]
[1749270197788,0.01083639,104860.0,104850.0,1.82150376]
[1749270198035,0.00130069,104860.0,104850.0,1.82150376]
[1749270202178,0.01083639,104860.0,104850.0,1.82150376]
[1749270202291,0.01083639,104860.0,104850.0,1.79070376]
[1749270203172,0.02037218,104860.0,104850.0,1.79070376]
[1749270203373,0.00130069,104860.0,104850.0,1.79070376]
[1749270203789,0.00130069,104860.0,104850.0,1.82200376]
[1749270205644,0.00130069,104860.0,104850.0,2.37231375]
[1749270206020,0.00130069,104860.0,104850.0,2.44858624]
[1749270206664,0.00130069,104860.0,104850.0,2.47724424]
[1749270206999,0.00130069,104860.0,104850.0,2.47424424]
[1749270207200,0.00230069,104860.0,104850.0,2.48024424]
[1749270208151,0.00230069,104860.0,104850.0,2.47724424]
[1749270208529,0.00230069,104860.0,104850.0,2.48024424]
[1749270209077,0.00230069,104860.0,104850.0,2.47724424]
[1749270209286,0.00230069,104860.0,104850.0,2.48124424]
[1749270211150,0.00230069,104860.0,104850.0,2.48112424]
[1749270211981,0.00230069,104860.0,104850.0,3.03143423]
[1749270212298,0.00230069,104860.0,104850.0,2.48112424]
[1749270217590,0.00230069,104860.0,104850.0,2.45246624]
[1749270225820,0.00230069,104860.0,104850.0,2.46700709]
[1749270228224,0.00230069,104860.0,104850.0,2.65970709]
[1749270233009,0.00230069,104860.0,104850.0,2.23666624]
[1749270233218,0.01860069,104860.0,104850.0,2.61382624]
[1749270234243,0.01860069,104860.0,104850.0,2.42112624]
[1749270235517,0.01860069,104860.0,104850.0,2.42108624]
[1749270236135,0.00230069,104860.0,104850.0,2.04396624]
[1749270236337,0.00230069,104860.0,104850.0,2.42108624]
[1749270246450,0.00230069,104860.0,104850.0,2.04396624]
[1749270246655,0.00230069,104860.0,104850.0,2.42108624]
[1749270248832,0.03360069,104860.0,104850.0,2.04396624]
[1749270249052,0.03360069,104860.0,104850.0,2.42108624]
[1749270251687,0.01830069,104860.0,104850.0,2.42108624]
[1749270254607,0.00230069,104860.0,104850.0,2.42108624]
[1749270256075,0.03380069,104860.0,104850.0,2.42108624]
[1749270258323,0.03380069,104860.0,104850.0,2.04396624]
[1749270258545,0.03380069,104860.0,104850.0,2.42108624]
[1749270260419,0.01840069,104860.0,104850.0,2.42108624]
[1749270264615,0.00230069,104860.0,104850.0,2.42108624]
[1749270267732,0.00230069,104860.0,104850.0,2.45258624]
[1749270267948,0.00230069,104860.0,104850.0,2.37631375]
[1749270268166,0.00230069,104860.0,104850.0,2.42109291]
[1749270268585,0.00230069,104860.0,104850.0,2.34481375]
[1749270269485,0.00230069,104860.0,104850.0,2.34477375]
[1749270270126,0.00230069,104860.0,104850.0,2.44007869]
[1749270275294,0.00230069,104860.0,104850.0,2.34477375]
[1749270278625,0.00130069,104860.0,104850.0,2.48041954]
[1749270278949,0.00230069,104860.0,104850.0,2.48741954]
[1749270279759,0.00230069,104860.0,104850.0,2.48341954]
[1749270280166,0.00230069,104860.0,104850.0,2.48841954]
[1749270281605,0.00230069,104860.0,104850.0,2.68111954]
[1749270289013,0.00230069,104860.0,104850.0,2.66591954]
[1749270289215,0.00230069,104860.0,104850.0,2.68181954]
[1749270290018,0.00230069,104860.0,104850.0,3.42942953]
[1749270290275,0.0319,104880.0,104870.0,1.31993803]
[1749270290506,0.0319,104880.0,104870.0,1.50429751]
[1749270290717,0.0319,104880.0,104870.0,1.5805313]
[1749270291346,0.0319,104880.0,104870.0,1.50429751]
[1749270291563,0.0319,104880.0,104870.0,1.50529751]
[1749270291786,0.0319,104880.0,104870.0,1.8706113]
[1749270292215,0.0319,104880.0,104870.0,1.8726113]
[1749270292423,0.0319,104880.0,104870.0,1.79637751]
[1749270292640,0.0319,104880.0,104870.0,1.8726113]
[1749270293272,0.0319,104880.0,104870.0,1.79637751]
[1749270295054,0.0319,104880.0,104870.0,1.80612379]
[1749270295685,0.0319,104880.0,104870.0,1.83500959]
[1749270296743,0.29599225,104910.0,104900.0,0.19065776]
[1749270296954,0.30552377,104910.0,104900.0,1.37478063]
[1749270297367,0.33612377,104910.0,104900.0,1.37478063]
[1749270297990,0.33660207,104910.0,104900.0,1.37478063]
[1749270298276,0.33960207,104910.0,104900.0,1.37478063]
[1749270298497,0.34160207,104910.0,104900.0,1.37478063]
[1749270298704,0.15096248,104910.0,104900.0,1.37478063]
[1749270298920,0.14142997,104910.0,104900.0,1.48071281]
[1749270299132,0.15096167,104910.0,104900.0,1.48071281]
[1749270299532,0.15096167,104910.0,104900.0,1.4905016]
[1749270299756,0.129898,104910.0,104900.0,1.50003403]
[1749270299952,0.14896149,104910.0,104900.0,1.50003421]
[1749270300167,0.13742961,104910.0,104900.0,1.50003421]
[1749270300366,0.1469614,104910.0,104900.0,1.50003421]
[1749270300621,0.13842961,104910.0,104900.0,1.50956673]
[1749270300828,0.1479614,104910.0,104900.0,1.50956673]
[1749270301045,0.14796131,104910.0,104900.0,1.50003421]
[1749270301252,0.14796131,104910.0,104900.0,1.50956673]
[1749270301463,0.13842961,104910.0,104900.0,1.50003421]
[1749270301889,0.1479614,104910.0,104900.0,1.50003421]
[1749270302095,0.1479614,104910.0,104900.0,1.50956673]
[1749270303363,0.13842961,104910.0,104900.0,1.50956673]
[1749270303574,0.13842961,104910.0,104900.0,1.50003421]
[1749270303779,0.1479614,104910.0,104900.0,1.50003421]
[1749270303984,0.1479614,104910.0,104900.0,1.50956673]
[1749270304189,0.1479614,104910.0,104900.0,1.49016542]
[1749270304424,0.1479614,104910.0,104900.0,0.93985543]
[1749270305398,0.13842961,104910.0,104900.0,0.94938795]
[1749270305616,0.1479614,104910.0,104900.0,0.93985543]
[1749270305797,0.13842961,104910.0,104900.0,1.50923037]
[1749270305998,0.13842961,104910.0,104900.0,1.49969749]
[1749270306652,0.13842961,104910.0,104900.0,1.50922983]
[1749270306783,0.128898,104910.0,104900.0,1.50922983]
[1749270306982,0.128898,104910.0,104900.0,1.50922938]
[1749270307811,0.128898,104910.0,104900.0,1.51901911]
[1749270308075,0.128898,104910.0,104900.0,1.50948686]
[1749270308215,0.128898,104910.0,104900.0,1.49016479]
[1749270308416,0.128898,104910.0,104900.0,1.49969704]
[1749270308623,0.128898,104910.0,104900.0,1.49016479]
[1749270309059,0.1384297,104910.0,104900.0,1.49016479]
[1749270309263,0.1384297,104910.0,104900.0,1.11324479]
[1749270309434,0.128898,104910.0,104900.0,1.49016479]
[1749270309641,0.13842961,104910.0,104900.0,1.49969713]
[1749270309879,0.128898,104910.0,104900.0,1.49969713]
[1749270310021,0.128898,104910.0,104900.0,1.50922938]
[1749270310221,0.128898,104910.0,104900.0,1.49969713]
[1749270310423,0.128898,104910.0,104900.0,1.49016479]
[1749270310424,0.13842961,104910.0,104900.0,1.49016479]
[1749270310632,0.13842961,104910.0,104900.0,1.48063236]
[1749270310844,0.13842961,104910.0,104900.0,1.49016479]
[1749270311198,0.128898,104910.0,104900.0,1.49969713]
[1749270311404,0.128898,104910.0,104900.0,1.50922938]
[1749270311607,0.13842961,104910.0,104900.0,1.49016479]
[1749270311820,0.13842961,104910.0,104900.0,1.49969713]
[1749270312041,0.13842961,104910.0,104900.0,1.49016479]
[1749270312248,0.128898,104910.0,104900.0,1.49969704]
[1749270312474,0.13842952,104910.0,104900.0,1.49016479]
[1749270313336,0.12889791,104910.0,104900.0,1.49016479]
[1749270313539,0.13842952,104910.0,104900.0,1.49969713]
[1749270313763,0.13842952,104910.0,104900.0,1.49016479]
[1749270314729,0.12889791,104910.0,104900.0,1.49016479]
[1749270315133,0.11936666,104910.0,104900.0,1.49969704]
[1749270315339,0.11936666,104910.0,104900.0,1.77441713]
[1749270315542,0.11936666,104910.0,104900.0,1.78394938]
[1749270315944,0.10983532,104910.0,104900.0,1.78394938]
[1749270316147,0.12889791,104910.0,104900.0,1.78394938]
[1749270316771,0.12889791,104910.0,104900.0,1.77441713]
[1749270316976,0.12889791,104910.0,104900.0,1.76488479]
[1749270317176,0.12889791,104910.0,104900.0,1.77441713]
[1749270318122,0.128898,104910.0,104900.0,1.78394938]
[1749270318537,0.12889791,104910.0,104900.0,1.78394938]
[1749270319913,0.13842943,104910.0,104900.0,1.76488479]
[1749270320124,0.12889791,104910.0,104900.0,1.77441713]
[1749270320540,0.13842943,104910.0,104900.0,1.75535236]
[1749270321150,0.13842943,104910.0,104900.0,1.75031236]
[1749270321357,0.13842943,104910.0,104900.0,1.2095348]
[1749270323044,0.13842943,104910.0,104900.0,1.20000237]
[1749270323258,0.13742943,104910.0,104900.0,1.75984479]
[1749270323590,0.13642943,104910.0,104900.0,1.75984479]
[1749270323962,0.13642943,104910.0,104900.0,1.76084479]
[1749270324684,0.13642943,104910.0,104900.0,1.75131272]
[1749270324923,0.13642943,104910.0,104900.0,1.76084524]
[1749270325142,0.13642943,104910.0,104900.0,1.75131272]
[1749270325347,0.14596104,104910.0,104900.0,1.76084524]
[1749270325713,0.13642943,104910.0,104900.0,1.76084524]
[1749270326554,0.14596104,104910.0,104900.0,1.76084524]
[1749270327163,0.14596104,104910.0,104900.0,1.21053525]
[1749270328143,0.12689791,104910.0,104900.0,1.22006768]
[1749270328346,0.13642943,104910.0,104900.0,1.22006768]
[1749270328937,0.13642943,104910.0,104900.0,1.77037767]
[1749270330371,0.13642943,104910.0,104900.0,1.77991001]
[1749270330635,0.13642943,104910.0,104900.0,1.77037767]
[1749270330842,0.12689791,104910.0,104900.0,1.77037767]
[1749270331056,0.13642943,104910.0,104900.0,1.77037767]
[1749270332769,0.13642943,104910.0,104900.0,1.76084524]
[1749270333323,0.10783532,104910.0,104900.0,1.77037749]
[1749270337012,0.11736648,104910.0,104900.0,1.77037749]
[1749270337223,0.10783532,104910.0,104900.0,1.77037749]
[1749270338691,0.10783532,104910.0,104900.0,1.39349749]
[1749270338817,0.10783532,104910.0,104900.0,1.77029749]
[1749270346594,0.10783532,104910.0,104900.0,1.77025749]
[1749270347141,0.10783532,104910.0,104900.0,1.2199475]
[1749270347345,0.10783532,104910.0,104900.0,1.77025749]
[1749270347963,0.10783532,104910.0,104900.0,1.39349749]
[1749270348158,0.10783532,104910.0,104900.0,1.77025749]
[1749270353331,0.10783532,104910.0,104900.0,0.3211875]
[1749270353545,0.87022973,104910.0,104900.0,0.6108]
[1749270353755,0.86784839,104910.0,104900.0,1.09033776]
[1749270357735,0.85831678,104910.0,104900.0,0.001]
[1749270357942,0.85831678,104910.0,104900.0,0.52292]
[1749270358188,0.85831678,104910.0,104900.0,0.89968]
[1749270360945,0.85831678,104910.0,104900.0,0.52292]
[1749270361146,0.85831678,104910.0,104900.0,0.89968]
[1749270364279,0.85831678,104910.0,104900.0,1.09033776]
[1749270365986,0.85831678,104910.0,104900.0,0.89968]
[1749270366187,0.8487849,104910.0,104900.0,0.52292]
[1749270366588,0.8487849,104910.0,104900.0,0.89968]
[1749270367594,0.8487849,104910.0,104900.0,1.09033776]
[1749270369116,0.8487849,104910.0,104900.0,0.89968]
[1749270370232,0.8487849,104910.0,104900.0,1.09033776]
[1749270371286,0.8487849,104910.0,104900.0,0.89968]
[1749270379008,0.8487849,104910.0,104900.0,0.52292]
[1749270379437,0.8487849,104910.0,104900.0,0.89968]
[1749270380000,0.8487849,104910.0,104900.0,0.52292]
[1749270380137,0.8487849,104910.0,104900.0,0.89968]
[1749270380706,0.8487849,104910.0,104900.0,0.52292]
[1749270381006,0.8487849,104910.0,104900.0,0.89968]
[1749270384640,0.8487849,104910.0,104900.0,0.52292]
[1749270384840,0.8487849,104910.0,104900.0,0.89968]
[1749270395580,0.8487849,104910.0,104900.0,0.93782105]
[1749270396703,0.8336849,104910.0,104900.0,0.89968]
[1749270397330,0.8336849,104910.0,104900.0,0.93782105]
[1749270397533,0.8336849,104910.0,104900.0,0.66306105]
[1749270397938,0.8336849,104910.0,104900.0,0.62492]
[1749270400559,0.8336849,104910.0,104900.0,0.66306105]
[1749270405238,0.8494849,104910.0,104900.0,0.66306105]
[1749270406105,0.8336849,104910.0,104900.0,0.66306105]
[1749270410686,0.28337491,104910.0,104900.0,0.66306105]
[1749270411429,0.26787491,104910.0,104900.0,0.66306105]
[1749270412207,0.28337491,104910.0,104900.0,0.66306105]
[1749270414175,0.29837491,104910.0,104900.0,0.66306105]
[1749270414864,0.28337491,104910.0,104900.0,0.66306105]
[1749270415269,0.29837491,104910.0,104900.0,0.66306105]
[1749270416557,0.28337491,104910.0,104900.0,0.66306105]
[1749270419052,0.28337491,104910.0,104900.0,0.69167387]
[1749270421735,0.26787491,104910.0,104900.0,0.69167387]
[1749270424046,0.26787491,104910.0,104900.0,0.31499387]
[1749270424248,0.28287491,104910.0,104900.0,0.31499387]
[1749270424456,0.28287491,104910.0,104900.0,0.69163387]
[1749270424656,0.28287491,104910.0,104900.0,0.31499387]
[1749270424862,0.28287491,104910.0,104900.0,0.69163387]
[1749270425083,0.29837491,104910.0,104900.0,0.69163387]
[1749270429948,0.8486849,104910.0,104900.0,0.27685282]
[1749270430076,0.8486849,104910.0,104900.0,0.6248]
[1749270430727,0.86655191,104910.0,104900.0,0.6248]
[1749270430915,0.86655138,104910.0,104900.0,0.6248]
[1749270431064,0.8486849,104910.0,104900.0,0.6248]
[1749270433574,0.29837491,104910.0,104900.0,0.6248]
[1749270433783,0.23948362,104910.0,104900.0,0.6248]
[1749270433983,0.78979361,104910.0,104900.0,0.6248]
[1749270434159,0.77192788,104910.0,104900.0,0.6248]
[1749270445298,0.77192788,104910.0,104900.0,0.24824]
[1749270445454,0.77192788,104910.0,104900.0,0.6248]
[1749270445682,0.22161789,104910.0,104900.0,0.6248]
[1749270445892,0.77192788,104910.0,104900.0,0.6248]
[1749270446395,5.66783535,104910.0,104900.0,0.24824]
[1749270446560,5.66783535,104910.0,104900.0,0.6248]
[1749270446561,5.7292791,104910.0,104900.0,0.6248]
[1749270446752,5.6990897,104910.0,104900.0,0.6248]
[1749270446967,5.66783535,104910.0,104900.0,0.6248]
[1749270447383,5.66783535,104910.0,104900.0,0.6238]
[1749270447576,5.66883535,104910.0,104900.0,0.6238]
[1749270448872,5.66983535,104910.0,104900.0,0.6238]
[1749270450998,5.68764246,104910.0,104900.0,0.6238]
[1749270451224,5.66983535,104910.0,104900.0,0.6238]
[1749270451410,1.77844598,104910.0,104900.0,0.6238]
[1749270451640,5.66983535,104910.0,104900.0,0.6238]
[1749270451827,5.6876446,104910.0,104900.0,0.6238]
[1749270452028,5.68764461,104910.0,104900.0,0.6238]
[1749270452243,5.68764554,104910.0,104900.0,0.6238]
[1749270452447,5.68764573,104910.0,104900.0,0.6238]
[1749270452596,5.66983535,104910.0,104900.0,0.6238]
[1749270452807,5.68764588,104910.0,104900.0,0.6238]
[1749270453012,5.68764587,104910.0,104900.0,0.6238]
[1749270453337,5.66983535,104910.0,104900.0,0.6238]
[1749270453635,5.68764588,104910.0,104900.0,0.6238]
[1749270454175,5.66983535,104910.0,104900.0,0.6238]
[1749270454381,5.68764609,104910.0,104900.0,0.6238]
[1749270454787,5.68764577,104910.0,104900.0,0.6238]
[1749270454994,5.68764591,104910.0,104900.0,0.6238]
[1749270455395,5.66983535,104910.0,104900.0,0.6238]
[1749270455823,5.68764588,104910.0,104900.0,0.6238]
[1749270456062,5.66983535,104910.0,104900.0,0.6238]
[1749270456381,5.68764017,104910.0,104900.0,0.6238]
[1749270457290,5.66983535,104910.0,104900.0,0.6238]
[1749270457492,5.68764016,104910.0,104900.0,0.6238]
[1749270457692,5.66983535,104910.0,104900.0,0.6238]
[1749270458131,5.68764015,104910.0,104900.0,0.6238]
[1749270458336,5.66983535,104910.0,104900.0,0.6238]
[1749270458541,5.6843762,104910.0,104900.0,0.24724]
[1749270458719,5.70218005,104910.0,104900.0,0.6238]
[1749270458879,5.73083805,104910.0,104900.0,0.6238]
[1749270459090,5.7130342,104910.0,104900.0,0.6238]
[1749270459427,5.73083698,104910.0,104900.0,0.6238]
[1749270460608,5.73083665,104910.0,104900.0,0.6238]
[1749270460993,5.73083651,104910.0,104900.0,0.6238]
[1749270461203,5.7130342,104910.0,104900.0,0.6238]
[1749270461400,5.6843762,104910.0,104900.0,0.6238]
[1749270461979,5.70217712,104910.0,104900.0,0.6238]
[1749270462167,5.6843762,104910.0,104900.0,0.6238]
[1749270462599,5.70217714,104910.0,104900.0,0.6238]
[1749270463245,5.6843762,104910.0,104900.0,0.6238]
[1749270463370,5.70217714,104910.0,104900.0,0.6238]
[1749270463802,5.6843762,104910.0,104900.0,0.6238]
[1749270464388,5.70217714,104910.0,104900.0,0.6238]
[1749270464587,5.6843762,104910.0,104900.0,0.6238]
[1749270465616,5.70217782,104910.0,104900.0,0.6238]
[1749270465819,5.70217789,104910.0,104900.0,0.6238]
[1749270466037,5.70217788,104910.0,104900.0,0.6238]
[1749270466590,5.6843762,104910.0,104900.0,0.6238]
[1749270467307,5.70217783,104910.0,104900.0,0.6238]
[1749270467776,5.6843762,104910.0,104900.0,0.6238]
[1749270468236,5.70217783,104910.0,104900.0,0.6238]
[1749270468641,5.7021829,104910.0,104900.0,0.6238]
[1749270468842,5.6843762,104910.0,104900.0,0.6238]
[1749270469078,5.7021829,104910.0,104900.0,0.6238]
[1749270469281,5.6843762,104910.0,104900.0,0.6238]
[1749270469463,5.7021829,104910.0,104900.0,0.6238]
[1749270469704,5.6843762,104910.0,104900.0,0.6238]
[1749270469838,5.7021829,104910.0,104900.0,0.6238]
[1749270470451,5.71292512,104910.0,104900.0,0.6238]
[1749270470657,5.73073182,104910.0,104900.0,0.6238]
[1749270471079,5.73073181,104910.0,104900.0,0.6238]
[1749270471403,5.71292512,104910.0,104900.0,0.6238]
[1749270472227,1.80372712,104910.0,104900.0,0.6238]
[1749270472437,5.73078342,104910.0,104900.0,0.6238]
[1749270472896,5.71292512,104910.0,104900.0,0.6238]
[1749270473101,5.73078368,104910.0,104900.0,0.6238]
[1749270474052,5.71292512,104910.0,104900.0,0.6238]
[1749270474899,5.73078368,104910.0,104900.0,0.33504]
[1749270475047,5.71292512,104910.0,104900.0,0.62376]
[1749270475670,5.73078369,104910.0,104900.0,0.62376]
[1749270475885,5.71292512,104910.0,104900.0,0.62376]
[1749270476106,5.71294906,104910.0,104900.0,0.62376]
[1749270476472,5.73080762,104910.0,104900.0,0.62376]
[1749270476691,5.71294906,104910.0,104900.0,0.62376]
[1749270477432,1.80375106,104910.0,104900.0,0.62376]
[1749270477643,5.71294906,104910.0,104900.0,0.62376]
[1749270477891,5.73080871,104910.0,104900.0,0.62376]
[1749270478226,5.71294906,104910.0,104900.0,0.62376]
[1749270478425,1.82161039,104910.0,104900.0,0.62376]
[1749270478639,5.73080802,104910.0,104900.0,0.62376]
[1749270478854,5.71294906,104910.0,104900.0,0.62376]
[1749270479258,5.73080788,104910.0,104900.0,0.62376]
[1749270479583,5.73080833,104910.0,104900.0,0.62376]
[1749270479724,5.73080836,104910.0,104900.0,0.62376]
[1749270479928,5.73080864,104910.0,104900.0,0.62376]
[1749270480757,5.73080864,104910.0,104900.0,0.24724]
[1749270480957,6.47705792,104910.0,104900.0,0.33504]
[1749270481168,5.90897637,104910.0,104900.0,0.62376]
[1749270481735,5.96514901,104910.0,104900.0,0.62376]
[1749270482153,6.00585501,104910.0,104900.0,0.62376]
[1749270482383,6.556165,104910.0,104900.0,0.24724]
[1749270482586,6.5591646,104910.0,104900.0,0.24724]
[1749270482789,6.5591646,104910.0,104900.0,0.33504]
[1749270482790,6.57506766,104910.0,104900.0,0.33504]
[1749270483000,6.57506766,104910.0,104900.0,0.62376]
[1749270483202,6.57506721,104910.0,104900.0,0.62376]
[1749270483403,6.55721013,104910.0,104900.0,0.62376]
[1749270483604,6.57506705,104910.0,104900.0,0.62376]
[1749270483955,6.55721013,104910.0,104900.0,0.62376]
[1749270484363,6.65761013,104910.0,104900.0,0.62376]
[1749270484546,2.64801213,104910.0,104900.0,0.62376]
[1749270484761,6.46081065,104910.0,104900.0,0.62376]
[1749270485056,6.40777318,104910.0,104900.0,0.62376]
[1749270485196,6.40777318,104910.0,104900.0,0.37652]
[1749270485624,6.90237318,104910.0,104900.0,0.37652]
[1749270487413,6.94040155,104910.0,104900.0,0.37652]
[1749270487631,7.03680103,104910.0,104900.0,0.37652]
[1749270488284,6.35883721,104910.0,104900.0,0.37652]
[1749270489975,2.44963921,104910.0,104900.0,0.37652]
[1749270490177,6.35883721,104910.0,104900.0,0.37652]
[1749270498373,2.44963921,104910.0,104900.0,0.37652]
[1749270498577,6.35883721,104910.0,104900.0,0.37652]
[1749270498801,5.96063669,104910.0,104900.0,0.37652]
[1749270499421,6.51094668,104910.0,104900.0,0.37652]
[1749270500318,5.96063669,104910.0,104900.0,0.37652]
[1749270500992,5.80346405,104910.0,104900.0,0.37652]
[1749270501214,5.70706457,104910.0,104900.0,0.37652]